Cogmind - Beta 14 @@@ ROGUE MODE // 2024.12.18 @ 08:40:23 Player: abnormality Result: Destroyed by H-61 Shepherd with Heavy Assault Cannon Performance ------------- Evolutions (3) 1500 Regions Visited (6) 1200 Robots Destroyed (38) 190 Value Destroyed (879) 879 Prototype IDs (0) 0 Alien Tech Used (0) 0 Bonus (500) 500 TOTAL SCORE: 4269 Bonus ------- Entered DSFs 500 Cogmind --------- Core Integrity 0/700 Matter 254/300 Energy 74/100 System Corruption 0% Temperature Cool (2) Movement Treading (160) Location -7/DSF Parts ------- > --- POWER (2) -------- (None) > --- PROPULSION (4) --- Medium Treads Medium Treads > --- UTILITY (4) ------ Large Storage Unit Machine Analyzer Visual Processing Unit > --- WEAPON (3) ------- (None) > --- INVENTORY (15) --- Light Ion Engine Small Storage Unit Medium Matter Pod (100) Terrain Scan Processor Recoil Stabilizer Power Shielding Peak State ------------ > --- POWER ------------ Ion Engine Improved Ion Engine > --- PROPULSION ------- Wheel Wheel Armored Wheel > --- UTILITY ---------- Large Storage Unit Melee Analysis Suite Particle Charger Core Shielding > --- WEAPON ----------- Medium Laser Particle Cannon > --- INVENTORY -------- Light Ion Engine Light Ion Engine Light Ion Engine Aluminum Leg Small Storage Unit Medium Matter Pod Visual Processing Unit Visual Processing Unit Terrain Scan Processor Recoil Stabilizer Power Shielding Tractor Beam [Rating: 19] Favorites ----------- Power Ion Engine Engine Ion Engine Propulsion Aluminum Leg Treads Medium Treads Leg Aluminum Leg Wheel Armored Wheel Utility Large Storage Unit Device Tractor Beam Storage Large Storage Unit Processor Machine Analyzer Protection Core Shielding Weapon Makeshift Shrapnel Gun Energy Gun Medium Laser Energy Cannon Particle Cannon Ballistic Gun Makeshift Shrapnel Gun Launcher Grenade Launcher Build | -11 -10 -10 -9 -8 -7 -7 ------- Run | Yrd Mat Min Mat Mat Fac DSF Slots Evolved 6 | . . . 2 2 2 . Power 1 | . . . . 1 . . Propulsion 2 | . . . 1 1 . . Utility 2 | . . . 1 . 1 . Weapon 1 | . . . . . 1 . Parts Attached 52 | 8 2 9 16 6 2 9 Power 7 | 2 . 1 1 1 . 2 Engine 7 | 2 . 1 1 1 . 2 Core . | . . . . . . . Reactor . | . . . . . . . Propulsion 18 | 2 . 4 7 2 . 3 Treads 2 | . . . . . . 2 Leg 8 | 2 . 2 3 . . 1 Wheel 8 | . . 2 4 2 . . Hover . | . . . . . . . Flight . | . . . . . . . Utility 15 | 2 . . 6 1 2 4 Device 4 | 1 . . 1 1 . 1 Storage 2 | 1 . . 1 . . . Processor 5 | . . . . . 2 3 Hackware . | . . . . . . . Protection 4 | . . . 4 . . . Artifact . | . . . . . . . Weapon 12 | 2 2 4 2 2 . . Energy Gun 5 | 1 1 2 . 1 . . Energy Cannon 3 | . . . 2 1 . . Ballistic Gun 3 | 1 . 2 . . . . Ballistic Cannon . | . . . . . . . Launcher 1 | . 1 . . . . . Special Weapon . | . . . . . . . Impact Weapon . | . . . . . . . Slashing Weapon . | . . . . . . . Piercing Weapon . | . . . . . . . Special Melee Weapon . | . . . . . . . Unidentified Prototypes . | . . . . . . . Parts Lost 28 | . . 8 4 2 . 14 Power 5 | . . 1 . . . 4 Propulsion 9 | . . 2 3 . . 4 Utility 6 | . . 1 1 . . 4 Weapon 8 | . . 4 . 2 . 2 Highest Loss Streak 11 | . . 3 2 1 . 11 To Critical Strikes . | . . . . . . . Average Slot Usage (%) 85 | . 100 84 87 85 84 52 Engine 12 | . 14 14 11 15 15 7 Leg 12 | . 28 24 7 . . . Wheel 11 | . . 1 16 25 23 11 Device 6 | . 14 3 4 9 7 3 Storage 11 | . 14 14 11 9 7 7 Protection 7 | . . . 14 9 7 4 Energy Gun 5 | . 13 10 1 1 7 2 Energy Cannon 6 | . . . 9 13 7 2 Ballistic Gun 9 | . 10 12 11 3 . . Launcher 1 | . 4 2 . . . . Peak Build Rating 19 | 7 7 9 17 17 19 19 Average Rating 11 | 4 7 7 14 15 17 13 On Entrance 10 | . 7 7 9 14 17 18 Naked Turns . | . . . . . . . Heaviest Build 44 | 15 16 16 37 44 42 42 Greatest Support 56 | 20 20 26 36 32 32 56 Greatest Overweight (x) 11 | . . 1 11 2 1 6 Average Overweight (x) . | . . . . 1 1 1 Largest Inventory Capacity 15 | 8 8 8 15 15 15 15 Average Capacity 12 | 6 8 8 14 15 15 15 Most Carried 13 | 5 4 5 12 13 12 13 Average Carried 6 | 1 2 2 9 10 11 10 Final Capacity 15 | 8 8 8 15 15 15 15 Final Carried 13 | 2 4 4 11 13 11 6 Class Distribution -------------------- 77% | Mutant 22% | Scavenger-Mutant Dominant Class ---------------- Mutant | -10/Materials Mutant | -10/Mines Mutant | -9/Materials Scavenger-Mutant | -8/Materials Scavenger-Mutant | -7/Factory Mutant | -7/DSF Resources | -11 -10 -10 -9 -8 -7 -7 ----------- Run | Yrd Mat Min Mat Mat Fac DSF Matter Collected 1095 | 285 63 290 384 59 . 14 Remotely 331 | . . . 263 59 . 9 Salvage Created 1306 | 91 119 199 687 210 . . Parts 91 | 4 15 7 49 16 . . Haulers Intercepted 1 | . . . 1 . . . Recyclers Shooed . | . . . . . . . Parts Field Recycled . | . . . . . . . Retrieved Matter . | . . . . . . . Parts Self-Destructed . | . . . . . . . Prevented . | . . . . . . . Kills | -11 -10 -10 -9 -8 -7 -7 ------- Run | Yrd Mat Min Mat Mat Fac DSF Combat Hostiles Destroyed 43 | . 5 16 16 6 . . Guns 25 | . 3 12 10 . . . Cannons 9 | . . . 3 6 . . AOE 9 | . 2 4 3 . . . Classes Destroyed 9 | 2 4 1 2 . . . Worker 4 | . 2 1 1 . . . Builder 2 | . 1 1 . . . . Tunneler 2 | 1 . . . 1 . . Hauler 1 | . . . 1 . . . Recycler 2 | 1 . . 1 . . . Swarmer 9 | . 3 . 3 3 . . Grunt 12 | . 2 . 8 2 . . Sentry 6 | . . . 5 1 . . Assembled 16 | . . 16 . . . . Best Kill Streak 7 | 2 4 6 7 3 . . Combat Bots Only 6 | . 3 6 5 3 . . Max Kills in Single Turn 4 | 1 2 2 4 1 . . Gunslinging . | . . . . . . . Exploded 2 | . 1 1 2 . . . Melee . | . . . . . . . Uniques/NPCs Destroyed . | . . . . . . . Combat | -11 -10 -10 -9 -8 -7 -7 -------- Run | Yrd Mat Min Mat Mat Fac DSF Hostile Shots Fired 275 | . 23 49 71 33 . 99 Missed 83 | . 9 12 17 14 . 31 Damage Taken 3504 | . 149 725 745 195 . 1690 Core 1027 | . 29 131 96 15 . 756 Absorbed by Shields . | . . . . . . . Redirected to Shielding 54 | . . . 8 3 . 43 Core Remaining (%) 77 | 100 . 36 76 97 . . Volleys Fired 109 | 5 20 40 30 12 . 2 Largest 2 | 2 2 2 2 2 . 2 Hottest 124 | 70 70 74 92 124 . 118 Shots Fired 198 | 10 36 66 60 22 . 4 Gun 142 | 10 32 62 32 4 . 2 Cannon 48 | . . . 28 18 . 2 Launcher 8 | . 4 4 . . . . Special . | . . . . . . . Kinetic 88 | 5 12 38 30 3 . . Thermal 68 | 5 12 18 16 13 . 4 Explosive 8 | . 4 4 . . . . Electromagnetic 34 | . 8 6 14 6 . . Robot Hit Streak 13 | 5 5 7 13 6 . 7 Robot Miss Streak 6 | 2 2 6 3 3 . 3 Penetration Max . | . . . . . . . Secondary Targets 2 | . . 2 . . . . Max Gunslinging Chain 1 | . . 1 . . . . Shots Hit Robots 118 | 6 10 43 42 16 . 1 Core Hits 87 | 3 11 33 29 11 . . Critical Kills . | . . . . . . . Critical Parts Destroyed . | . . . . . . . Critical Strikes 5 | 1 . 4 . . . . Burn 5 | 1 . 4 . . . . Melee Attacks . | . . . . . . . Impact . | . . . . . . . Slashing . | . . . . . . . Piercing . | . . . . . . . Sneak Attacks . | . . . . . . . Combat Hostiles . | . . . . . . . Follow-up Attacks . | . . . . . . . Damage Inflicted 2725 | 77 414 713 1188 320 . 13 Guns 1327 | 77 151 561 459 66 . 13 Cannons 592 | . . . 338 254 . . Explosions 802 | . 263 152 387 . . . Melee . | . . . . . . . Ramming 4 | . . . 4 . . . Kinetic 987 | 39 57 393 446 52 . . Thermal 611 | 38 86 126 164 184 . 13 Explosive 739 | . 228 152 359 . . . Electromagnetic 384 | . 43 42 215 84 . . Impact . | . . . . . . . Slashing . | . . . . . . . Piercing . | . . . . . . . Highest Corruption 6 | . . 6 . . . . Average Corruption 5 | . . 5 . . . . Corruption Purged . | . . . . . . . Corruption Blocked . | . . . . . . . Effects 11 | . . 11 . . . . Message Errors 4 | . . 4 . . . . Matter Fused 2 | . . 2 . . . . Heat Flow Errors 1 | . . 1 . . . . Energy Discharges 1 | . . 1 . . . . Data Loss (minor) 1 | . . 1 . . . . Data Loss (major) 2 | . . 2 . . . . Overload Shots . | . . . . . . . Overflow Damage 75 | . 2 . 73 . . . Projectiles . | . . . . . . . Explosions 75 | . 2 . 73 . . . Melee . | . . . . . . . Knockbacks . | . . . . . . . Impact . | . . . . . . . Kinetic . | . . . . . . . Secondary . | . . . . . . . Self-Inflicted Damage 242 | . 20 84 138 . . . Shots 7 | . 1 4 2 . . . Rammed . | . . . . . . . Targets Rammed 1 | . . . 1 . . . Kicked 1 | . . . 1 . . . Crushed . | . . . . . . . Highest Temperature 221 | 27 69 107 86 221 . . Average Temperature 37 | 12 30 17 33 83 . . Received Heat Transfer 311 | . 42 20 195 54 . . Siege Activations . | . . . . . . . Robots Corrupted . | . . . . . . . Combat Hostiles . | . . . . . . . Parts Fried . | . . . . . . . Impact Corruptions . | . . . . . . . Robots Melted . | . . . . . . . Combat Hostiles . | . . . . . . . Parts Melted 2 | 1 1 . . . . . Heat Transferred 1778 | 185 198 666 359 333 . 37 Parts Sabotaged . | . . . . . . . Parts Stolen . | . . . . . . . Parts Stripped . | . . . . . . . Power Chain Reactions 2 | . 1 . 1 . . . Alert | -11 -10 -10 -9 -8 -7 -7 ------- Run | Yrd Mat Min Mat Mat Fac DSF Peak Influence 399 | 10 119 88 399 308 140 98 Initial 168 | . 6 46 3 168 140 98 Average 117 | 2 36 40 178 234 140 46 Maximum Alert Level 1 | . . . 1 1 . . Low Security (%) 75 | 100 100 100 57 34 100 100 Level 1 24 | . . . 42 65 . . Level 2 . | . . . . . . . Level 3 . | . . . . . . . Level 4 . | . . . . . . . Level 5 . | . . . . . . . High Security . | . . . . . . . Max Security . | . . . . . . . Squads Dispatched 5 | . 2 . 2 . . 1 Investigation 4 | . 2 . 2 . . . Extermination . | . . . . . . . Reinforcement 1 | . . . . . . 1 Assault . | . . . . . . . Garrison . | . . . . . . . Intercept . | . . . . . . . Searches Triggered . | . . . . . . . Construction Impeded . | . . . . . . . Haulers Reinforced . | . . . . . . . Active Scanning Responses . | . . . . . . . Cargo Convoy Interrupts . | . . . . . . . Stealth | -11 -10 -10 -9 -8 -7 -7 --------- Run | Yrd Mat Min Mat Mat Fac DSF Distress Signals 5 | . . . 4 1 . . Communications Jammed . | . . . . . . . Distress Signals . | . . . . . . . Times Spotted 59 | . 5 16 26 7 . 5 Peak Tracking Total 8 | . 3 4 8 3 . 3 Tactical Retreats 4 | . . . 3 . . 1 Traps | -11 -10 -10 -9 -8 -7 -7 ------- Run | Yrd Mat Min Mat Mat Fac DSF Traps Triggered 2 | . 1 . 1 . . . Indirectly . | . . . . . . . Trap Hack Attempts . | . . . . . . . Triggered . | . . . . . . . Disarmed . | . . . . . . . Reprogrammed . | . . . . . . . Reused . | . . . . . . . Traps Extracted . | . . . . . . . Installed . | . . . . . . . Triggered . | . . . . . . . Machines | -11 -10 -10 -9 -8 -7 -7 ---------- Run | Yrd Mat Min Mat Mat Fac DSF Machines Disabled 3 | . 1 . 2 . . . Max in Single Turn 2 | . 1 . 2 . . . Machines Repaired . | . . . . . . . Machines Dismantled . | . . . . . . . Machines Sabotaged . | . . . . . . . Overloaded Fab Kills . | . . . . . . . Hacking | -11 -10 -10 -9 -8 -7 -7 --------- Run | Yrd Mat Min Mat Mat Fac DSF Machines Accessed 10 | . 4 1 3 1 1 . Terminals 9 | . 4 1 3 . 1 . Fabricators . | . . . . . . . Repair Stations . | . . . . . . . Recycling Units 1 | . . . . 1 . . Scanalyzers . | . . . . . . . Garrison Access . | . . . . . . . Total Hacks 22 | . 8 2 5 5 2 . Successful 11 | . 4 2 3 1 1 . Failed 11 | . 4 . 2 4 1 . Catastrophic 3 | . 1 . 1 1 . . Database Lockouts . | . . . . . . . Manual . | . . . . . . . Terminals 17 | . 8 2 5 . 2 . Fabricators . | . . . . . . . Repair Stations . | . . . . . . . Recycling Units 5 | . . . . 5 . . Scanalyzers . | . . . . . . . Garrison Access . | . . . . . . . Terminal Hacks 10 | . 4 2 3 . 1 . Record 2 | . 1 1 . . . . Open DSF 1 | . . . . . 1 . Branch Access Points 1 | . 1 . . . . . Alert Level 1 | . 1 . . . . . Unreport Threat 1 | . 1 . . . . . Locate Traps 1 | . . . 1 . . . Maintenance Status 1 | . . . 1 . . . Patrol Status 1 | . . . 1 . . . Zone Layout 1 | . . 1 . . . . Fabricator Hacks . | . . . . . . . Repair Station Hacks . | . . . . . . . Recycling Unit Hacks 1 | . . . . 1 . . Report Inventory 1 | . . . . 1 . . Scanalyzer . | . . . . . . . Garrison Access Hacks . | . . . . . . . Unauthorized Hacks . | . . . . . . . Terminals . | . . . . . . . Fabricators . | . . . . . . . Repair Stations . | . . . . . . . Recycling Units . | . . . . . . . Scanalyzers . | . . . . . . . Garrison Access . | . . . . . . . Data Cores Recovered . | . . . . . . . Used . | . . . . . . . Hacking Detections 6 | . 3 . 1 1 1 . Full Trace Events 3 | . 1 . 1 1 . . Feedback Events . | . . . . . . . Feedback Blocked . | . . . . . . . Robot Schematics Acquired . | . . . . . . . Robots Built . | . . . . . . . Authchips . | . . . . . . . Time . | . . . . . . . Total Robot Build Rating . | . . . . . . . Part Schematics Acquired . | . . . . . . . Parts Built . | . . . . . . . Authchips . | . . . . . . . Time . | . . . . . . . Total Part Build Rating . | . . . . . . . Parts Repaired . | . . . . . . . Time . | . . . . . . . Parts Recycled . | . . . . . . . Recycled Matter . | . . . . . . . Retrieved Matter . | . . . . . . . Retrieved Components . | . . . . . . . Parts Scanalyzed . | . . . . . . . Part Schematics Acquired . | . . . . . . . Parts Damaged . | . . . . . . . Bothacking | -11 -10 -10 -9 -8 -7 -7 ------------ Run | Yrd Mat Min Mat Mat Fac DSF Used RIF Installer . | . . . . . . . Robots Hacked . | . . . . . . . Non-combat . | . . . . . . . Combat . | . . . . . . . Robot Hacks Applied . | . . . . . . . Relay Couplers Released . | . . . . . . . Fabnet Peak Effective % . | . . . . . . . Robots Rewired . | . . . . . . . Allies Hacked . | . . . . . . . Hacks Repelled . | . . . . . . . Allies | -11 -10 -10 -9 -8 -7 -7 -------- Run | Yrd Mat Min Mat Mat Fac DSF Total Allies . | . . . . . . . Largest Group . | . . . . . . . Highest-Rated Group . | . . . . . . . Highest-Rated Ally . | . . . . . . . Total Orders . | . . . . . . . Ally Attacks . | . . . . . . . Total Damage . | . . . . . . . Kills . | . . . . . . . Allies Corrupted . | . . . . . . . Allies Melted . | . . . . . . . Intel | -11 -10 -10 -9 -8 -7 -7 ------- Run | Yrd Mat Min Mat Mat Fac DSF Robot Analysis Total . | . . . . . . . Derelict Logs Recovered 1 | . . 1 . . . . Drone Launches . | . . . . . . . Drone Recoveries . | . . . . . . . Exploration | -11 -10 -10 -9 -8 -7 -7 ------------- Run | Yrd Mat Min Mat Mat Fac DSF Turns Passed 1893 | 88 234 427 757 229 6 152 Spaces Moved 1146 | 50 144 248 460 170 4 70 Core 17 | 6 . . 2 . . 9 Treads 21 | . . . . . . 21 Legs 513 | 44 144 236 88 . . 1 Wheels 595 | . . 12 370 170 4 39 Hover . | . . . . . . . Flight . | . . . . . . . Fastest Speed 50 | 50 120 90 90 98 98 95 Average Speed 121 | 111 120 122 126 99 98 150 Slowest Speed 600 | 120 120 190 600 120 98 350 Overloaded Moves . | . . . . . . . Propulsion Burnouts . | . . . . . . . Robots Hopped . | . . . . . . . Cave-ins Triggered . | . . . . . . . Exploration Rate (%) 35 | 4 29 66 37 24 . 55 Regions Visited 6 Branch Regions 1 Pre-discovered Areas 1 | . . 1 . . . . Known Exits Taken 2 | . 1 . . . 1 . Unknown Exits Taken 4 | 1 . 1 1 1 . . Scrap Searched 1 | . . 1 . . . . Spaces Dug . | . . . . . . . Terrain Destroyed 96 | . 22 33 41 . . . Melee . | . . . . . . . Projectile . | . . . . . . . AOE 96 | . 22 33 41 . . . Terrain Rammed . | . . . . . . . Walls Destroyed . | . . . . . . . Machines Disabled . | . . . . . . . Actions | -11 -10 -10 -9 -8 -7 -7 --------- Run | Yrd Mat Min Mat Mat Fac DSF Total 1443 | 71 168 304 574 206 6 114 Wait 88 | . 1 1 46 12 . 28 Move 1140 | 49 143 247 459 169 3 70 Hop . | . . . . . . . Pick Up 46 | 9 2 7 17 7 . 4 Fast Attach . | . . . . . . . Attach 37 | 7 . 7 7 5 2 9 Detach . | . . . . . . . Swap 15 | 1 2 2 9 1 . . Drop 7 | . . . 5 . 1 1 Fire 109 | 5 20 40 30 12 . 2 Melee . | . . . . . . . Ram . | . . . . . . . Kick 1 | . . . 1 . . . Crush . | . . . . . . . Escape Stasis . | . . . . . . . Rewire . | . . . . . . . Trap . | . . . . . . . Miscellaneous . | . . . . . . . Route ------- -11/Scrapyard -10/Materials (discovered 2 exits: *Min x2) -10/Mines -9/Materials -8/Materials -7/Factory -7/DSF History --------- Turn | Location | Event 12 | -11/Scrapyard | Discovered new exit (range 16) 89 | -11/Scrapyard | Entered Materials 95 | -10/Materials | Identified exit to Mines 300 | -10/Materials | Build established: Mutant 323 | -10/Materials | Entered Mines 324 | -10/Mines | Assembled infested the area 489 | -10/Mines | A weapon hastily lodged in a ceiling crevice suddenly fell to the ground 495 | -10/Mines | Lost 3 parts (1p1u1w) 535 | -10/Mines | Core integrity fell below 50% 676 | -10/Mines | Learned location of Mines (-9) 718 | -10/Mines | Discovered new exit (range 13) 750 | -10/Mines | Entered Materials 750 | -9/Materials | Evolved 2 slots: Propulsion x1, Utility x1 1295 | -9/Materials | Discovered new exit (range 13) 1507 | -9/Materials | Entered another Materials area 1507 | -8/Materials | Evolved 2 slots: Power x1, Propulsion x1 1695 | -8/Materials | Discovered new exit (range 15) 1736 | -8/Materials | Entered Factory 1736 | -7/Factory | Evolved 2 slots: Utility x1, Weapon x1 1741 | -7/Factory | Identified exit to DSF 1742 | -7/Factory | Entered DSF 1768 | -7/DSF | Additional patrols routed to DSF 1838 | -7/DSF | Core integrity fell below 50% 1846 | -7/DSF | Core integrity fell below 20% 1861 | -7/DSF | Lost 11 parts (2p4n3u2w) 1894 | -7/DSF | Destroyed by H-61 Shepherd with Heavy Assault Cannon Last Messages --------------- 01804_ Particle Cannon destroyed. 01818_ Particle Charger destroyed. 01820_ Aluminum Leg destroyed. 01823_ Wheel destroyed. 01828_ Machine Analyzer destroyed. 01828_ Critical hit (Blast). 01828_ Knocked back. 01828_ Acquired 5 matter. 01830_ Core Shielding destroyed. 01834_ Slug penetrates Wall. 01849_ Acquired Med. Treads. 01850_ Slug penetrates Wall. 01850_ Knocked back. 01854_ Acquired Med. Treads. 01861_ Lgt. Ion Engine destroyed. 01862_ Acquired 1 matter. 01862_ Acquired 8 matter. 01863_ Lgt. Ion Engine destroyed. 01869_ Tractor Beam destroyed. 01888_ X-67 Chaingunner springs to life. Map ----- +----------------------------------------------------+ | | | | | ????????????????????????????????? | | ????????????????????????????????? | | ????????????????????????????????? | | ?????????##?????????????????????? | | ?????????""?????????????????????? | | ?????????#"#????????????????????? | | ??????####"##???????#########???? | | ??????#"""""#########!!!!! ##### | | ??????#%""""##==# #!!!!! # # | | ???#"##"%% % | | ???#""""" | | ?????##"" ##==#= ### "## # | | ??????### ###==#==="## "## # | | ???????## x##########// ##### | | ???????# ==#??????#// #???? | | ???????# x ==#??????#// #???? | | ???????## ###??????##" ###???? | | ???????#=^ ==#????????! !!????? | | ???????#= ==#???????!! !!#???? | | ???????#= ==#???????!! !!#???? | | ??????### ###??????### ###???? | | ??????#!! #??????????# #?????? | | ??????#!! ##!!!#!!!#? ?????? | | ??????# @^ ?????? | | ??????# % H ??????? | | ??????# ??????? | | ??????# ## #===##a ??????? | | ??????# #? #?==#???????????? | | ??????### #??###???#???????????? | | ????????= ????????????????????? | | ????????= ????????????????????? | | ????????= ???????????????????? | | ????????# ##???????????????????? | | ????????= ????????????????????? | | ????????= ????????????????????? | | ????????# #????????????????????? | | ????????? #????????????????????? | | ????????? ????????????????????? | | ?????????? ????????????????????? | | ?????????? ????????????????????? | | ??????????"?????????????????????? | | ????????????????????????????????? | | ????????????????????????????????? | | ????????????????????????????????? | | ????????????????????????????????? | | ????????????????????????????????? | | ????????????????????????????????? | | ????????????????????????????????? | +----------------------------------------------------+ Best States ------------- Heat Dissipation 34 Energy Generation 17 Energy Capacity 415 Matter Stores 300 Matter Capacity 300 Sight Range 18 Terrain Scan Density 10 Armor Coverage 300 Core Shielding 20 Power Shielding 33 Evasion (%) 55 Recoil Reduction 2 Particle Charging 15 Item Schematics ----------------- None Robot Schematics ------------------ None Fabricated ------------ Nothing Alien Tech Used ----------------- None Achievements -------------- Exterminator Challenges ------------ None Game ------ Seed AutogunFieldAutohacker Manual? 0 Play Time 00:22:21 Cumulative 9.2 hours Start 2024.12.18 @ 06:29:39 End 2024.12.18 @ 08:40:23 Sessions 1 Manual Loads 0 Difficulty Rogue Special Mode None Game No. 53 Rogue 53 Adventurer 0 Explorer 0 Win Type - Total 0 Types 0/0/0/0/0/0/0/0/0 Lore% 8 Gallery% 15 Achievement% 17 Wizard Run 0 Options --------- Layout 0 ASCII 0 Keyboard 0 Movement Mouse Keybinds 0 Fullscreen 1 Font 18/SmallcapsGlow Map View 38x25 Zoom Use 100% Tactical HUD 1 Map Filters NONE Filters NONE Steam 1 RUN: 59be730f-ebfa-46f4-9a02-9bf62b92894e